bitfinex/quotes_ETHUSD_20241212
["timestamp","ask_amount","ask_price","bid_price","bid_amount"]
[1734026936472,0.9076,3944.2,3943.0,1.99194838]
[1734026936686,0.9076,3944.2,3943.1,1.21328798]
[1734026936858,0.9076,3944.2,3943.2,1.21330997]
[1734026937196,0.9076,3944.2,3943.1,1.05384838]
[1734026937498,0.9076,3944.2,3943.2,1.21320258]
[1734026937655,0.9076,3944.2,3943.2,0.47861378]
[1734026938468,0.9076,3944.2,3943.0,1.99194838]
[1734026938785,0.9076,3944.2,3943.1,1.21331825]
[1734026938968,0.9076,3944.2,3943.2,1.21331825]
[1734026939193,0.9076,3944.2,3943.0,1.99194838]
[1734026939388,0.9076,3944.2,3943.1,1.21337181]
[1734026939700,0.9076,3944.2,3943.0,1.99194838]
[1734026939701,0.9076,3944.2,3943.2,1.53390383]
[1734026939900,0.9076,3944.2,3943.3,1.2133089]
[1734026940216,0.9076,3944.2,3943.2,0.32053202]
[1734026942905,1.06361832,3944.8,3943.3,2.01054838]
[1734026942906,1.0478,3944.7,3943.3,2.01054838]
[1734026943120,1.0478,3944.7,3943.4,2.26709813]
[1734026943407,1.0478,3944.7,3943.3,0.9567]
[1734026943408,1.0478,3944.7,3943.5,2.77962983]
[1734026943607,0.02534836,3944.6,3943.6,1.21324975]
[1734026943820,1.0478,3944.3,3943.5,0.5125317]
[1734026945118,1.0478,3944.3,3943.3,2.12810177]
[1734026945278,1.0478,3944.3,3943.4,1.21352]
[1734026945480,1.0478,3944.3,3943.3,2.12810177]
[1734026945679,1.0478,3944.3,3943.4,1.21347841]
[1734026946003,1.0478,3944.3,3943.3,2.12810177]
[1734026946004,1.0478,3944.3,3943.5,1.21364957]
[1734026946208,1.0478,3944.3,3943.6,0.33417513]
[1734026949218,1.0478,3944.3,3943.7,1.21424956]
[1734026949398,1.0478,3944.3,3943.6,0.33417513]
[1734026951130,0.25,3944.0,3943.2,0.32053202]
[1734026951424,1.0436,3943.9,3943.1,1.05384838]
[1734026951938,1.0436,3943.9,3943.0,1.05384838]
[1734026952142,1.0436,3943.7,3942.8,1.05384838]
[1734026952437,1.17549484,3943.7,3942.9,1.21537146]
[1734026952598,1.0436,3943.7,3942.7,1.05384838]
[1734026954018,1.0436,3943.7,3942.7,2.26862663]
[1734026954222,1.0436,3943.7,3942.8,1.21477825]
[1734026954435,1.0436,3943.7,3942.6,1.05384838]
[1734026954633,1.0436,3943.7,3942.6,2.26908281]
[1734026954851,1.0436,3943.7,3942.7,1.21421985]
[1734026954995,1.0436,3943.7,3942.8,1.21421985]
[1734026955735,1.0436,3943.7,3942.7,0.68513773]
[1734026959197,1.0436,3943.7,3942.7,1.74000069]
[1734026959406,1.0436,3943.7,3942.8,1.21340934]
[1734026959695,1.0436,3943.7,3942.7,1.74000069]
[1734026959901,1.0436,3943.7,3942.8,1.84559002]
[1734026960101,1.0436,3943.7,3942.8,0.63222951]
[1734026960537,1.0436,3943.7,3942.9,1.21335858]
[1734026960841,1.0436,3943.7,3943.0,1.21326158]
[1734026961040,1.0436,3943.7,3942.8,1.68709247]
[1734026961345,1.0436,3943.7,3942.9,1.63614058]
[1734026961643,1.0436,3943.7,3942.9,0.42287869]
[1734026961848,1.0134,3944.1,3943.0,5.26789827]
[1734026962020,1.0134,3944.1,3943.1,2.26789827]
[1734026962221,1.0134,3944.1,3943.3,1.05486296]
[1734026962419,1.0272,3943.8,3942.9,0.42287869]
[1734026962661,1.0272,3943.6,3942.6,1.05486296]
[1734026962955,1.0272,3943.6,3942.7,1.21335321]
[1734026963105,1.0272,3943.6,3942.5,1.05486296]
[1734026963308,1.0272,3943.6,3942.6,1.21336979]
[1734026963551,1.0272,3943.6,3942.7,1.21336979]
[1734026963736,1.0272,3943.6,3942.8,0.22682328]
[1734026963917,1.0272,3943.6,3942.5,1.05486296]
[1734026964122,1.0272,3943.6,3942.6,1.21336974]
[1734026964456,1.0272,3943.6,3942.5,1.05486296]
[1734026964755,1.0272,3943.6,3942.6,1.21312452]
[1734026965068,1.0272,3943.6,3942.5,1.05486296]
[1734026965205,1.0272,3943.6,3942.6,1.77666743]
[1734026965408,1.0272,3943.6,3942.6,0.56371574]
[1734026966823,0.02534836,3943.5,3942.6,0.56371574]
[1734026967023,1.0226,3943.3,3942.2,1.05486296]
[1734026967224,1.0226,3943.3,3942.3,1.21306338]
[1734026967422,1.0226,3943.3,3942.1,1.05486296]
[1734026967625,1.0226,3943.3,3942.2,1.21309429]
[1734026967826,1.0226,3943.3,3942.0,1.05486296]
[1734026968154,1.0226,3943.3,3942.1,1.4768172]
[1734026968354,1.0226,3943.3,3942.1,2.53168016]
[1734026968512,1.0226,3943.3,3942.2,1.21310146]
[1734026968707,1.0226,3943.3,3942.3,1.21301256]
[1734026968951,1.0226,3943.3,3942.1,1.3185787]
[1734026969178,1.0226,3943.3,3942.2,2.55789223]
[1734026969479,1.0226,3943.3,3942.3,2.27049651]
[1734026969680,1.0226,3943.3,3942.5,1.05486296]
[1734026969846,1.0554,3943.9,3942.6,1.21289651]
[1734026970047,1.0554,3943.9,3942.7,1.21249085]
[1734026970363,1.0554,3943.9,3942.8,1.43962048]
[1734026970695,1.0554,3943.9,3942.8,0.22673538]
[1734026971136,1.0554,3943.9,3942.9,1.21282191]
[1734026971343,1.0554,3943.9,3942.8,0.22673538]
[1734026971344,1.0554,3943.9,3943.0,1.21282191]
[1734026971647,1.0554,3943.9,3942.9,1.05486296]
[1734026971849,1.0554,3943.9,3943.0,1.49959083]
[1734026972063,1.0554,3943.9,3943.0,0.28638928]
[1734026972260,1.0554,3943.9,3943.1,1.2136488]
[1734026972480,1.0554,3943.9,3942.8,1.28159834]
[1734026972772,1.0554,3943.9,3942.9,2.26847563]
[1734026972983,1.0554,3943.9,3943.0,1.21361267]
[1734026974059,1.0554,3943.9,3943.1,1.21387405]
[1734026974376,1.0554,3943.9,3942.9,1.05486296]
[1734026974561,1.0554,3943.9,3943.0,1.51540663]
[1734026974772,1.0554,3943.9,3943.0,0.30154228]
[1734026975071,1.0554,3943.9,3943.1,1.2138831]
[1734026975279,1.0554,3943.9,3943.0,0.30154228]
[1734026975478,0.02534836,3943.8,3943.1,1.2140382]
[1734026975805,1.0554,3943.9,3942.9,1.05486296]
[1734026976099,1.0554,3943.9,3943.0,1.21423326]
[1734026976239,1.0554,3943.9,3942.9,1.05486296]
[1734026976443,1.0554,3943.9,3943.0,1.21435514]
[1734026976778,1.0554,3943.9,3942.8,1.28159834]
[1734026976974,1.0554,3943.9,3942.9,1.51504495]
[1734026977181,1.0554,3943.9,3943.0,1.21416633]
[1734026977342,1.0554,3943.9,3943.1,1.21416633]
[1734026977536,1.0554,3943.9,3942.9,1.35574158]
[1734026977737,1.0554,3943.9,3943.0,1.21367806]
[1734026977946,1.0554,3943.9,3943.1,1.49329356]
[1734026978151,1.0554,3943.9,3943.1,0.2796155]
[1734026979584,1.0554,3943.9,3943.2,1.21333755]
[1734026980083,1.0554,3943.9,3943.1,1.33447846]
[1734026980294,1.0554,3943.9,3943.2,1.21338918]
[1734026980471,1.0554,3943.9,3943.3,0.65260676]
[1734026982286,1.0554,3943.9,3943.1,1.33447846]
[1734026982445,1.0554,3943.9,3943.2,1.21344255]
[1734026982647,1.0554,3943.9,3943.1,1.33447846]
[1734026982844,1.0554,3943.9,3943.2,1.2134799]
[1734026983046,1.0554,3943.9,3943.1,0.2796155]
[1734026983295,1.0554,3943.9,3943.2,1.63310713]
[1734026983443,1.0554,3943.9,3943.2,0.41958515]
[1734026984384,1.0554,3943.9,3943.1,0.2796155]
[1734026985068,1.0554,3943.9,3943.0,1.05486296]
[1734026985267,1.0554,3943.9,3943.1,1.21353048]
[1734026985464,1.0554,3943.9,3943.2,1.21353048]
[1734026985683,1.0554,3943.9,3943.0,1.05486296]
[1734026985887,1.0554,3943.9,3943.1,1.2133308]
[1734026986201,1.0554,3943.9,3943.2,1.47023804]
[1734026986365,1.0554,3943.9,3943.2,0.25690724]
[1734026989190,1.0554,3943.9,3943.3,1.21346635]
[1734026989493,1.0554,3943.9,3943.2,0.25690724]
[1734026989655,1.0554,3943.9,3943.3,1.21347644]
[1734026989850,1.0554,3943.9,3943.3,0.25252466]
[1734026991493,1.0554,3943.9,3943.1,1.05486296]
[1734026991877,1.0554,3943.9,3943.2,1.21392366]
[1734026992204,1.0554,3943.9,3943.0,1.05486296]
[1734026992418,1.0554,3943.9,3943.1,1.21410074]
[1734026992705,1.0554,3943.9,3943.2,1.21395054]
[1734026992925,1.0554,3943.9,3943.0,1.05486296]
[1734026993211,1.0554,3943.9,3943.1,1.21389845]
[1734026993369,1.0554,3943.9,3943.2,2.26876141]
[1734026993699,1.0554,3943.9,3943.3,1.21389845]
[1734026994399,1.0554,3943.9,3943.3,2.26876141]
[1734026994598,1.0554,3943.9,3943.4,1.21389845]
[1734026994804,1.0554,3943.9,3943.3,1.05486296]
[1734026995107,0.9817,3944.2,3943.4,1.57595539]
[1734026995256,1.06058721,3944.8,3943.6,1.05486296]
[1734026995463,2.12117442,3945.1,3943.9,1.05486296]
[1734026995464,0.9817,3944.7,3943.9,1.05486296]
[1734026995670,0.9817,3944.7,3944.2,1.05486296]
[1734026995971,0.9817,3944.7,3943.8,3.09302592]
[1734026995972,0.9817,3944.7,3944.3,2.81564064]
[1734026996176,1.0487,3945.2,3944.3,0.54686803]
[1734026996427,1.0487,3945.2,3944.3,2.27553371]
[1734026996715,1.0487,3945.2,3944.4,1.22067075]
[1734026996922,1.0487,3945.2,3944.5,1.22067075]
[1734026997085,1.0487,3945.2,3944.3,1.05486296]
[1734026997270,1.0487,3945.2,3944.4,1.22003506]
[1734026997620,1.0487,3945.2,3944.5,0.2274898]
[1734026997909,1.0487,3945.2,3944.6,1.2199094]
[1734026998113,1.02,3945.8,3944.7,1.2199094]
[1734026998298,1.02,3945.8,3944.6,1.05486296]
[1734026998621,1.02,3945.8,3944.7,2.659768]
[1734026998913,1.02,3945.8,3944.8,1.21887032]
[1734026999096,1.02,3945.8,3944.7,0.38603472]
[1734026999329,1.02,3945.8,3944.8,1.21794279]
[1734026999535,1.02,3945.8,3944.7,0.38603472]
[1734026999849,1.02,3945.8,3944.8,0.26640875]
[1734027000233,1.02,3945.8,3944.5,1.2231898]
[1734027000604,1.02,3945.8,3944.6,1.21799783]
[1734027000808,1.02,3945.8,3944.7,1.21799783]
[1734027001118,1.02,3945.8,3944.8,1.21799783]
[1734027001352,1.02,3945.8,3944.9,1.21799783]
[1734027001505,1.02,3945.8,3945.0,2.45998391]
[1734027001703,1.02,3945.8,3945.0,1.24198608]
[1734027003048,0.9739,3946.5,3945.0,1.24198608]
[1734027003347,0.9739,3946.5,3945.1,1.4936248]
[1734027003507,1.31058721,3947.5,3945.4,0.9983]
[1734027003706,0.25,3948.0,3945.9,1.05486296]
[1734027004006,0.25,3947.8,3946.0,3.85847454]
[1734027004238,0.25,3947.7,3946.1,2.27004643]
[1734027004437,0.25,3947.7,3946.2,0.27814054]
[1734027005048,0.25,3947.8,3946.2,0.27814054]
[1734027005220,0.25,3947.7,3946.3,0.12764405]
[1734027005620,0.25,3948.3,3946.3,0.12764405]
[1734027005835,0.5,3948.3,3946.4,0.9459]
[1734027006041,0.25,3948.1,3946.4,1.22404054]
[1734027006750,0.9874,3948.0,3946.4,1.22404054]
[1734027007063,0.9874,3948.0,3946.5,0.14969574]
[1734027008924,0.9874,3948.0,3946.6,1.0319]
[1734027010268,0.9874,3948.0,3946.6,1.17956441]
[1734027011063,0.9756,3948.7,3946.8,0.9858]
[1734027011271,0.9756,3948.7,3946.9,0.27814054]
[1734027011472,0.9756,3948.7,3946.9,1.23644054]
[1734027011639,1.2256,3948.7,3947.0,0.9583]
[1734027011964,0.9756,3948.7,3947.0,0.9583]
[1734027012662,1.2256,3948.7,3947.0,0.9583]
[1734027012824,0.9756,3948.7,3947.0,1.10465135]
[1734027013024,1.2256,3948.7,3947.2,0.9701]
[1734027013225,0.02534836,3950.1,3947.4,1.0204]
[1734027013226,1.0398,3949.2,3947.4,1.0204]
[1734027013732,0.25,3949.1,3947.5,1.0204]
[1734027013931,1.0398,3949.2,3947.5,1.0204]
[1734027014279,0.25,3949.1,3947.5,1.0204]
[1734027014479,0.25,3949.1,3947.7,0.9666]
[1734027014678,1.0398,3949.2,3947.7,0.9666]
[1734027014850,0.25,3949.1,3947.7,0.9666]
[1734027017184,1.0398,3949.2,3947.7,0.9666]
[1734027017683,0.25,3949.1,3947.7,0.9666]
[1734027018040,0.25,3948.9,3947.7,0.9666]
[1734027018240,0.9795,3948.8,3947.7,0.9666]
[1734027018485,0.25,3949.7,3947.7,0.9666]
[1734027018639,0.25,3949.7,3947.8,0.77258757]
[1734027018845,1.2895,3949.7,3947.9,1.0401]
[1734027019066,1.2895,3949.7,3947.8,0.77258757]
[1734027019067,1.2895,3949.7,3948.1,1.0401]
[1734027020182,0.25,3949.5,3948.1,1.0401]
[1734027020516,0.25,3949.5,3948.1,1.18546662]
[1734027022089,0.25,3949.6,3948.1,1.18546662]
[1734027022585,1.0395,3949.7,3948.2,0.31145096]
[1734027022749,0.9715,3950.1,3948.3,0.9851]
[1734027022942,0.9715,3950.1,3948.5,0.9851]
[1734027023151,0.9715,3950.1,3948.6,0.99917459]
[1734027023360,0.9715,3950.4,3948.8,0.9851]
[1734027023595,0.9715,3950.4,3948.9,1.03607352]
[1734027023749,1.4715,3950.4,3949.0,1.022]
[1734027023956,1.4715,3950.4,3949.1,0.1344999]
[1734027025789,0.25,3950.2,3949.1,0.1344999]
[1734027025951,0.25,3950.2,3946.8,0.2534]
[1734027025952,0.25,3949.7,3948.6,0.9759]
[1734027026399,0.25,3949.5,3948.6,0.9759]
[1734027026798,1.2495,3949.1,3948.2,1.0232]
[1734027026982,0.25,3948.3,3946.5,0.02532282]
[1734027027154,3.0,3949.4,3944.8,5.29]
[1734027027155,0.25,3947.9,3946.6,0.29814054]
[1734027027354,0.25,3947.9,3946.7,1.0232]
[1734027027555,0.25,3947.9,3946.8,0.13213405]
[1734027027889,0.25,3947.9,3946.8,0.43027459]
[1734027030259,0.9995,3948.1,3946.9,0.02531901]
[1734027030456,1.0315,3948.5,3947.0,0.9915]
[1734027030784,1.0315,3948.5,3947.1,0.65294583]
[1734027031096,1.0315,3948.5,3947.2,0.16444458]
[1734027032289,1.0315,3948.5,3947.3,0.02532583]
[1734027032690,1.0315,3948.5,3947.2,0.16444458]
[1734027032893,0.25,3948.4,3947.2,0.16444458]
[1734027033099,0.25,3948.2,3947.2,0.16444458]
[1734027033852,1.0315,3948.5,3947.2,0.16444458]
[1734027033853,0.25,3948.4,3947.2,0.16444458]
[1734027034055,1.0315,3948.5,3947.2,0.18976944]
[1734027034351,1.0315,3948.5,3947.2,0.16444458]
[1734027034796,1.0315,3948.5,3947.3,0.9601]
[1734027035156,0.25,3948.8,3947.3,0.98542357]
[1734027035357,0.25,3948.7,3947.3,0.98542357]
[1734027035656,0.25,3948.6,3947.3,1.28356411]
[1734027035965,0.25,3948.6,3947.4,0.14480087]
[1734027036584,0.25,3948.7,3947.5,0.02532228]
[1734027036922,0.25,3948.6,3947.5,0.02532228]
[1734027037053,0.25,3948.6,3947.4,0.14480087]
[1734027039771,0.25,3948.7,3947.4,0.14480087]
[1734027039772,0.25,3948.7,3947.5,0.02532375]
[1734027040036,0.24695021,3948.6,3947.6,1.0046]
[1734027040162,0.9873,3948.9,3947.6,1.30274054]
[1734027041898,0.49695021,3949.0,3947.7,0.9749]
[1734027043595,0.25,3948.8,3947.7,0.9749]
[1734027043836,0.9729,3948.5,3947.7,0.9749]
[1734027046322,0.25,3948.5,3947.7,0.9749]
[1734027046998,0.24695021,3948.6,3947.7,0.9749]
[1734027046999,0.49695021,3948.6,3947.7,0.9749]
[1734027047537,0.49695021,3948.8,3947.7,0.9749]
[1734027047852,0.25,3948.8,3947.7,0.9749]
[1734027048014,0.24695021,3948.5,3947.7,0.9749]
[1734027048227,0.25,3948.8,3947.7,0.9749]
[1734027048433,0.24695021,3948.5,3947.7,0.9749]
[1734027050369,0.24695021,3948.5,3947.7,1.10261794]
[1734027050926,0.49695021,3948.5,3947.7,1.10261794]
[1734027051328,0.49695021,3948.5,3947.7,0.9749]
[1734027051329,0.25,3948.2,3947.7,0.9749]
[1734027052969,0.25,3947.8,3947.1,0.9783]
[1734027053260,0.9563,3947.3,3947.0,0.0053104]
[1734027053448,0.49695021,3947.4,3947.0,0.0053104]
[1734027053647,0.24695021,3947.4,3947.0,0.0053104]
[1734027055228,0.25,3947.5,3947.0,0.0053104]
[1734027055431,0.24695021,3947.4,3947.0,0.0053104]
[1734027056738,0.25,3947.5,3947.0,0.0053104]
[1734027057045,0.24695021,3947.4,3947.0,0.0053104]
[1734027057567,0.25,3947.3,3947.0,0.0053104]
[1734027060271,3.0,3948.2,3947.0,0.0053104]
[1734027060272,0.49695021,3947.1,3947.0,0.0053104]
[1734027060474,0.70869007,3947.1,3947.0,0.0053104]
[1734027061359,0.49695021,3947.1,3947.0,0.0053104]
[1734027062134,1.04695021,3947.1,3947.0,0.0053104]
[1734027063782,1.04695021,3947.1,3946.0,1.0137]
[1734027063946,0.55,3947.0,3946.0,1.0137]
[1734027064962,0.49695021,3946.8,3946.0,1.0137]
[1734027066277,0.25,3946.8,3946.0,1.0137]
[1734027066578,0.24695021,3947.5,3946.1,0.29814054]
[1734027066779,0.25,3947.2,3946.3,1.0126]
[1734027067150,0.24695021,3947.1,3946.3,1.0126]
[1734027068794,0.25,3946.9,3945.6,0.32948757]
[1734027069092,0.49695021,3946.7,3945.7,1.0126]
[1734027069254,0.49695021,3946.7,3945.7,1.31074054]
[1734027069459,0.49695021,3946.7,3945.7,0.29814054]
[1734027069806,0.49695021,3946.7,3945.8,1.033]
[1734027070555,0.49695021,3946.8,3945.8,1.033]
[1734027070896,0.49695021,3946.8,3946.0,1.0037]
[1734027073091,0.25,3946.8,3946.0,1.0037]
[1734027073276,0.49695021,3946.8,3946.0,1.0037]
[1734027074389,0.49695021,3947.0,3946.0,1.0037]
[1734027074597,0.24695021,3947.0,3946.0,1.0037]
[1734027076066,0.49695021,3947.0,3946.0,1.0037]
[1734027076597,0.25,3946.8,3946.0,1.0037]
[1734027077766,0.25,3946.6,3946.0,1.14719546]
[1734027079680,0.25,3946.5,3946.0,1.14719546]
[1734027082667,0.25,3946.3,3946.0,1.14719546]
[1734027082985,0.25,3946.3,3945.4,0.29814054]
[1734027082986,0.25,3946.3,3945.5,1.006]
[1734027083182,0.49695021,3945.8,3945.2,1.006]
[1734027083382,0.24695021,3945.6,3945.2,1.006]
[1734027084095,0.24695021,3945.6,3944.4,0.147701]
[1734027084096,0.25,3945.4,3944.7,0.9535]
[1734027084405,0.25,3945.0,3944.7,0.9535]
[1734027087182,0.25,3945.0,3944.4,1.0424104]
[1734027087393,0.25,3944.5,3944.4,0.0053104]
[1734027087708,0.24695021,3944.8,3944.4,0.0053104]
[1734027088209,0.24695021,3944.7,3944.4,0.0053104]
[1734027088414,0.25,3944.9,3944.4,0.0053104]
[1734027088621,0.49695021,3945.1,3944.5,1.0371]
[1734027088777,0.24695021,3945.0,3944.5,1.0371]
[1734027089108,0.25,3944.9,3944.5,1.0371]
[1734027091182,0.24695021,3945.0,3944.5,1.0371]
[1734027091588,0.49695021,3945.0,3944.5,1.0371]
[1734027091996,0.24695021,3945.0,3944.5,1.0371]
[1734027092298,0.24695021,3945.2,3944.5,1.0371]
[1734027092716,0.24695021,3945.0,3944.5,1.0371]
[1734027093079,0.49695021,3945.3,3944.5,1.0371]
[1734027095010,0.49695021,3945.3,3944.4,0.30345094]
[1734027095011,0.25,3945.8,3944.7,1.044]
[1734027095205,0.25,3945.8,3944.7,1.34214054]
[1734027095206,0.24695021,3945.5,3944.7,1.34214054]
[1734027095407,0.49695021,3945.8,3944.7,1.34214054]
[1734027096081,0.24695021,3945.8,3944.8,0.29814054]
[1734027096285,0.25,3946.1,3944.9,1.044]
[1734027096595,0.24695021,3946.4,3945.1,3.0]
[1734027096921,0.24695021,3946.4,3945.3,0.9621]
[1734027097094,0.24695021,3946.4,3945.3,1.26024054]
[1734027097294,0.24695021,3946.7,3945.4,0.29814054]
[1734027097538,0.24695021,3946.4,3945.5,0.9578]
[1734027097700,0.24695021,3946.8,3945.7,0.9578]
[1734027098047,0.24695021,3946.8,3945.9,0.9578]
[1734027098251,0.25,3946.7,3945.9,0.9578]
[1734027100615,0.9991,3947.4,3945.9,0.9578]
[1734027100616,0.25,3946.5,3945.9,0.9578]
[1734027102033,0.24695021,3946.9,3946.0,0.02533847]
[1734027103928,0.24695021,3946.9,3945.9,0.9578]
[1734027104242,0.24695021,3946.9,3946.0,0.39831365]
[1734027104733,0.25,3947.0,3946.2,1.0031]
[1734027104934,0.24695021,3946.8,3946.2,1.0031]
[1734027106030,0.25,3947.0,3946.2,1.0031]
[1734027106232,0.24695021,3946.8,3946.2,1.0031]
[1734027106533,0.24695021,3946.8,3946.3,0.15437902]
[1734027106734,0.49695021,3947.0,3946.3,0.15437902]
[1734027106930,0.24695021,3946.8,3946.3,0.15437902]
[1734027107101,0.49695021,3947.0,3946.3,0.15437902]
[1734027107298,0.24695021,3946.8,3946.3,0.15437902]
[1734027108504,0.49695021,3947.0,3946.3,0.15437902]
[1734027108704,0.24695021,3946.8,3946.3,0.15437902]
[1734027111206,0.49695021,3947.0,3946.3,0.15437902]
[1734027111524,0.24695021,3946.8,3946.3,0.15437902]
[1734027112155,0.25,3946.5,3946.0,0.39831365]
[1734027112326,0.25,3946.3,3945.9,1.018]
[1734027112505,0.25,3946.3,3945.6,0.42559405]
[1734027112506,0.25,3946.3,3945.6,1.44359405]
[1734027112704,0.49695021,3946.3,3945.6,1.44359405]
[1734027112938,0.49695021,3946.3,3945.6,1.018]
[1734027114728,0.25,3946.1,3945.6,1.018]
[1734027114930,0.25,3945.7,3944.8,2.93529794]
[1734027115118,0.25,3945.7,3945.0,1.0007]
[1734027115319,0.25,3945.7,3945.0,1.29884054]
[1734027115621,0.25,3945.7,3945.1,0.26831911]
[1734027121151,0.49695021,3945.4,3945.0,1.0007]
[1734027121327,0.25,3945.2,3944.2,1.3530035]
[1734027121649,0.25,3945.2,3944.3,2.20981394]
[1734027121650,1.45355021,3945.2,3944.3,2.20981394]
[1734027121851,1.45355021,3945.2,3944.3,0.9929]
[1734027122075,0.49695021,3945.2,3944.4,0.42724459]
[1734027122986,0.49695021,3945.4,3944.4,0.42724459]
[1734027123122,0.25,3945.4,3944.6,0.9811]
[1734027123322,0.24695021,3945.6,3944.7,0.29814054]
[1734027123736,0.24695021,3945.2,3944.7,0.29814054]
[1734027124044,0.24695021,3945.2,3944.8,0.16087281]
[1734027124238,0.24695021,3945.2,3944.6,0.9811]
[1734027124713,0.24695021,3945.2,3944.4,0.12910405]
[1734027124714,1.52155021,3945.2,3944.4,0.12910405]
[1734027124839,1.52155021,3945.2,3944.3,4.24804054]
[1734027124840,1.52155021,3945.2,3944.3,1.24804054]
[1734027125339,1.52155021,3945.2,3944.4,0.29814054]
[1734027126847,1.27155021,3945.2,3944.4,0.29814054]
[1734027127053,0.24695021,3945.2,3944.4,0.62762811]
[1734027127248,0.25,3945.1,3944.4,0.62762811]
[1734027127454,0.25,3945.1,3944.5,0.17027549]
[1734027128139,0.25,3945.1,3944.4,0.29814054]
[1734027130078,0.24695021,3945.2,3944.4,0.29814054]
[1734027130251,0.24695021,3945.2,3944.5,0.32948757]
[1734027130436,0.24695021,3945.2,3944.4,0.29814054]
[1734027133242,0.25,3945.3,3944.4,0.29814054]
[1734027133568,0.24695021,3945.1,3944.5,0.45148152]
[1734027135275,0.25,3944.5,3943.8,3.29814054]
[1734027135451,0.25,3944.5,3943.6,0.9728]
[1734027135652,0.25,3944.5,3943.6,1.10185087]
[1734027135879,0.25,3944.5,3943.7,0.24862014]
[1734027136212,0.25,3944.5,3943.7,0.54676068]
[1734027136482,0.24695021,3944.6,3943.8,0.62762811]
[1734027136652,0.25,3944.4,3943.8,0.62762811]
[1734027136860,0.25,3944.4,3943.8,0.29814054]
[1734027137077,0.25,3944.4,3943.9,0.46486116]
[1734027137375,0.25,3944.4,3943.9,0.7630017]
[1734027137950,0.24695021,3944.6,3943.9,0.7630017]
[1734027139787,0.25,3944.4,3943.9,0.7630017]
[1734027140707,1.0055,3944.3,3943.9,0.29814054]
[1734027142790,0.24695021,3944.6,3943.9,0.29814054]
[1734027143089,1.45805021,3944.9,3943.9,0.29814054]
[1734027146066,1.45805021,3944.9,3943.9,0.43446652]
[1734027146265,1.45805021,3944.9,3944.0,0.47320767]
[1734027146495,0.25,3944.6,3944.0,0.47320767]
[1734027146697,0.25,3944.6,3943.7,0.24862014]
[1734027146698,0.9827,3944.4,3943.7,0.24862014]
[1734027146899,0.9827,3944.4,3943.6,1.10185087]
[1734027147196,0.9827,3944.4,3943.6,1.23691215]
[1734027148085,1.2327,3944.4,3943.6,1.23691215]
[1734027149472,0.9827,3944.4,3943.7,0.29814054]
[1734027149668,1.2327,3944.4,3943.8,0.45350527]
[1734027150601,1.2327,3944.4,3943.7,0.29814054]
[1734027152666,1.0129,3943.9,3943.1,1.04899008]
[1734027152950,1.0129,3943.9,3943.0,1.04899008]
[1734027153246,0.49695021,3943.8,3942.9,2.26909257]
[1734027153593,0.49695021,3943.8,3943.0,1.72901431]
[1734027153761,0.25,3943.6,3943.1,1.22010249]
[1734027153905,0.25,3943.1,3942.4,1.04899008]
[1734027154105,0.25,3943.1,3942.1,2.42746774]
[1734027154106,0.24695021,3942.9,3942.1,1.04899008]
[1734027154304,0.49695021,3942.9,3942.1,1.35623268]
[1734027154605,0.49695021,3942.9,3942.2,0.29814054]
[1734027155802,0.9628,3943.0,3942.3,0.69225038]
[1734027156002,0.9628,3943.0,3942.3,0.99039092]
[1734027157113,0.9628,3943.0,3942.3,0.66090335]
[1734027158007,0.9628,3943.0,3942.3,0.36276281]
[1734027159042,0.25,3942.9,3942.3,0.36276281]
[1734027159247,0.25,3942.7,3941.9,2.38733062]
[1734027159473,0.25,3942.7,3941.9,1.17559456]
[1734027159474,0.24695021,3942.5,3941.9,1.17559456]
[1734027159599,0.25,3942.5,3941.9,0.13539456]
[1734027159803,0.9841,3942.4,3941.5,1.34713062]
[1734027160005,0.9841,3942.4,3941.6,1.51885309]
[1734027160204,0.9841,3942.4,3941.7,1.58206687]
[1734027160504,0.25,3942.3,3941.7,0.36135432]
[1734027160719,0.24695021,3941.9,3941.4,0.12890147]
[1734027161876,0.24695021,3941.9,3941.4,0.42704201]
[1734027162080,0.25,3942.1,3941.5,0.29814054]
[1734027162256,0.49695021,3942.1,3941.5,0.29814054]
[1734027162778,0.9841,3942.2,3941.5,0.62762811]
[1734027162947,0.49695021,3943.0,3941.6,0.32948757]
[1734027163145,0.49695021,3943.0,3941.8,1.04899008]
[1734027163146,0.25,3942.9,3941.8,1.04899008]
[1734027163470,0.24695021,3943.0,3941.9,5.4235815]
[1734027163693,0.24695021,3943.0,3942.1,5.04889008]
[1734027163866,0.24695021,3943.0,3942.1,0.9999]
[1734027164499,0.25,3942.9,3941.9,1.04510385]
[1734027164781,0.25,3942.9,3941.9,1.18360277]
[1734027164976,0.25,3942.9,3942.0,0.51835028]
[1734027165443,0.24695021,3943.0,3942.0,0.81649082]
[1734027165773,0.25,3942.9,3942.0,0.81649082]
[1734027165948,0.24695021,3943.0,3942.1,1.5175798]
[1734027166150,0.25,3942.9,3942.1,0.29814054]
[1734027166350,0.25,3942.9,3942.2,0.50039798]
[1734027166755,1.0483,3942.8,3942.2,0.50039798]
[1734027172378,0.25,3942.7,3942.2,0.50039798]
[1734027173687,1.0483,3942.8,3942.2,0.79853852]
[1734027178290,0.25,3942.5,3942.2,0.50039798]
[1734027178461,0.25,3942.2,3941.6,1.17808197]
[1734027178661,0.25,3942.2,3941.6,0.12909189]
[1734027179247,0.25,3941.9,3941.4,0.432572]
[1734027179459,0.9689,3941.8,3941.5,0.24533621]
[1734027179672,0.9689,3941.8,3941.1,0.0053104]
[1734027180053,0.25,3941.6,3941.1,0.0053104]
[1734027180254,0.25,3941.7,3941.1,0.0053104]
[1734027180582,0.25,3941.7,3941.1,0.30345094]
[1734027180760,0.9689,3941.8,3941.1,0.30345094]
[1734027180960,0.9689,3941.8,3941.2,0.80871623]
[1734027181174,0.25,3942.1,3941.3,0.9864]
[1734027181350,0.9711,3942.2,3941.4,3.29814054]
[1734027181553,0.9711,3942.2,3941.5,1.22049436]
[1734027181798,0.9711,3942.2,3941.6,1.22032807]